Workbook

Sheet Main planning
C3: Planning and preparation
D4: hiking list | E4: (html)
D5: hiking list-lists | E5: (html)
D7: Main (summary)
E8: plan-prep aim-what-where-itinerary-travel
F9: > tickets, permits, hikes, air-forest conditions
E10: trial pack + hike-with-old-pack
E11: last min mail home, feet, fresh items
D13: Get
E14: hiking gear and supplies
E15: town and camping supplies
D17: Total pack weight for backpacking and travel | H17: = | I17: =Gear!M182 -> 502 | J17: =ROUNDUP(I17/16,0) -> 32
I18: oz | J18: lb

Sheet Nutrition for hiking
C4: Nutrient needs—protein, carbs, fats, vitamins, minerals, roughage, and water
D5: Also see nutrition: | F5: diet and exercise.xlsm
D7: Hydration
D8: ¾ liters of water before hiking; ¼ liter frequently during; and 1 – 2 liters after
D10: Vitamins and meds
D11: With supper (to save morning time) or breakfast
D13: Meals
E14: Breakfast | F14: (the higher figures are for 4000 cal / day)
F15: About 500 - 800 cal; some protein, low fat and fiber
F16: On a rest day, eat less calories, more fiber
F17: Protein and collagen supplements
E19: Trail
F20: About 180 - 270 cal (45 - 67 g) per hour - 1440 cal for 6 hours of hiking
E21: While hiking, 70% carbs, 30% protein and fat
E22: Eat grains and legumes regularly, in small amounts for energy and muscle rebuilding
E23: Replenish electrolytes—salty snacks, salt tabs, electrolyte drinks / supplements
E25: Supper
E26: Eat 30 – 45 minutes after hiking—when the body is receptive to replenishment
F27: Higher fat content than breakfast and trail - for digestive ease and sleeping warmth
F28: Aim for 500 - 1600 cal (2500 - 4000 cal / day)
F29: Backpacker.com recommends - carb:protein = 4:1
E31: Before sleep
E32: Dessert of not too concentrated sugar and fluids with the evening meal
E33: Examples: fruit bars, energy nuggets, granola …
E34: Sugar free alternative to dessert—nuts, sesame sticks …

Sheet Gear
A2: Trip length | B2: Days= | C2: 7 | E2: items in red to be entered per trip
B3: Weeks = | C3: =C2/7 -> 1
B4: Months = | C4: =C2*12/365 -> 0.2301369863
E5: eliminate much of this junk | H5: some items depend on length of trip
B6: #people= | C6: 1 | D6: one or two
A8: Travel-camping material is in a blue font
K10: all weights are per person | V10: Modifications to consider
D11: 1=take, 0=no | E11: unit | F11: oz/unit | G11: units/day | H11: units /week | I11: units/month | J11: weeks | K11: /trip | L11: units (total) | M11: oz (total) | N11: lb | R11: cal/week | S11: cal/day | T11: cal/lb | W11: Simplification
A13: =K2/C2 -> 0 | B13: Breakfast | L13: needed | M13: needed | W13: More than one person, assuming similar personal gear…
A14: target | C14: Granola (~116 cal/oz) | D14: 1 | E14: cup | F14: 3.5 | H14: 3.5 | J14: =C3 -> 1 | L14: =M14/F14 ->  | M14: =D14*F14*H14*J14*#REF! ->  | N14: =M14/16 ->  | R14: =H14*F14*Q14*D14 -> 0 | S14: =R14/7 -> 0 | T14: =Q14*16 -> 0 | X14: … and shared gear, e.g., one stove / four people
A15: mean cal/day | C15: Milk powder | D15: 0 | E15: cup | F15: 6.5 | H15: =#REF! ->  | J15: =C3 -> 1 | L15: =M15/F15 ->  | M15: =D15*F15*H15*J15 ->  | N15: =M15/16 ->  | R15: =H15*F15*Q15*D15 ->  | S15: =R15/7 ->  | T15: =Q15*16 -> 0 | W15: Automated entry of new items
C16: Milkman | D16: 1 | E16: packet | F16: 3.44 | H16: =ROUNDUP((#REF!+#REF!+#REF!+#REF!+#REF!)/4,0) ->  | L16: =H16*C3*D16 ->  | M16: =D16*H16*3.44 ->  | R16: =Q16*M16 ->  | S16: =R16/7 ->  | T16: 0
A17: =SUM(#REF!) ->  | C17: Coffee | D17: 1 | E17: oz | F17: 1 | G17: 1.2 | H17: =G17*7 -> 8.4 | J17: =C3 -> 1 | L17: 8.4 | M17: =D17*F17*H17*J17 -> 8.4 | N17: 0.525 | R17: =H17*F17*Q17*D17 -> 0 | S17: 0 | T17: 0
A18: days | G18: 5 heaping tbsp | V18: =N179 -> 19.084375
C19: Coffee, freeze dried, consider
C20: Sugar (~110 cal/oz) | D20: 1 | E20: oz | F20: 1 | H20: 3.5 | J20: =C3 -> 1 | L20: =M20/F20 -> 3.5 | M20: =D20*F20*H20*J20 -> 3.5 | N20: 0.21875 | R20: =H20*F20*Q20*D20 -> 0 | S20: 0 | T20: 0
C21: Vitamins, meds, ibuprofen | D21: 1 | E21: oz | F21: 1 | H21: 1 | J21: =C3 -> 1 | L21: =M21/F21 -> 1 | M21: =D21*F21*H21*J21 -> 1 | N21: =M21/16 -> 0.0625 | R21: =H21*F21*Q21*D21 -> 0 | S21: 0 | T21: 0 | V21: qd-4 ibu 1 allegra 100mg losartan 25 mg hctz 1(b,C,D,E,Glucosamine, Multi)
A22: may sustitute | C22: Teas | D22: 1 | E22: pkt | F22: 0.0625 | H22: 7 | J22: =C3 -> 1 | L22: 7 | M22: =D22*F22*H22*J22 -> 0.4375 | N22: =M22/16 -> 0.02734375 | R22: =H22*F22*Q22*D22 -> 0 | S22: 0 | T22: 0
C23: Drinks, KoolAid | D23: 1 | E23: pkt | F23: 0.13 | H23: 3 | J23: =C3 -> 1 | L23: =ROUND(H23*J23,0) -> 3 | M23: =L23*F23 -> 0.39 | N23: =M23/16 -> 0.024375 | R23: =H23*F23*Q23*D23 -> 0 | S23: =R23/7 -> 0 | T23: =Q23*16 -> 0
A24: amounts | C24: Condensed milk | D24: 0 | E24: can | F24: 14 | H24: 1 | J24: =C3 -> 1 | K24: 1 | L24: 0 | M24: =D24*F24*H24*J24 -> 0 | N24: =M24/16 -> 0 | R24: =D24*Q24*F24/J24 -> 0 | S24: 0 | T24: 0
B25: Trail
C26: Sesame sticks | D26: 1 | E26: oz | F26: 1 | H26: 7 | J26: =C3 -> 1 | L26: =M26/F26 ->  | M26: =D26*F26*H26*J26*#REF! ->  | N26: =M26/16 ->  | R26: =H26*F26*Q26*D26 -> 0 | S26: 0 | T26: 0
A27: 1 cup = 2 2/3 fist | C27: Nuts (Peanuts, Cashews ~160 cal/oz) | D27: 1 | E27: oz | F27: 1 | H27: 10.5 | J27: =C3 -> 1 | L27: =M27/F27 ->  | M27: =D27*F27*H27*J27*#REF! ->  | R27: =H27*F27*Q27*D27 -> 0 | S27: 0 | T27: 0
C28: Dried fruit | D28: 1 | E28: oz | F28: 1 | H28: 14 | J28: =C3 -> 1 | M28: =D28*F28*H28*J28*#REF! ->  | R28: =H28*F28*Q28*D28 -> 0 | S28: 0 | T28: 0
B29: Dinner
C30: Rice, instant | D30: 1 | E30: oz | F30: 1 | H30: 7 | J30: =C3 -> 1 | L30: =M30/F30 ->  | M30: =D30*F30*H30*J30*#REF! ->  | N30: =M30/16 ->  | R30: =H30*F30*Q30*D30 -> 0 | S30: 0 | T30: 0
C31: Rice, regular, to work on
C32: Beans | D32: 1 | E32: oz | F32: 1 | H32: 7 | J32: =C3 -> 1 | L32: =M32/F32 ->  | M32: =D32*F32*H32*J32*#REF! ->  | N32: =M32/16 ->  | R32: =H32*F32*Q32*D32 -> 0 | S32: 0 | T32: 0
C33: Ramen | D33: 1 | E33: packet | F33: 2.5 | H33: =ROUNDUP(2*#REF!,0) ->  | J33: =C3 -> 1 | L33: =ROUND(H33*J33,0) ->  | M33: =L33*F33 ->  | T33: 0
C34: Broths | D34: 1 | E34: packet | F34: 0.5 | H34: 4 | J34: =C3 -> 1 | L34: 5 | M34: =L34*F34 -> 2.5 | N34: 0.15625 | R34: 0 | S34: 0 | T34: 0
C35: Jerky | D35: 1 | E35: packet | F35: 3 | H35: 1 | J35: =C3 -> 1 | L35: =ROUNDUP(H35*J35,0) -> 1 | M35: 3 | N35: 0.1875 | R35: 0 | S35: 0 | T35: 0
C36: Fruit bars | D36: 1 | E36: bar | F36: 1.2 | H36: 7 | J36: =C3 -> 1 | L36: =ROUNDUP(H36*J36*#REF!,0) ->  | R36: 0 | S36: 0 | T36: 0
C37: Turmeric | D37: 0 | E37: oz | F37: 1 | H37: 1 | J37: =C3 -> 1 | L37: =M37/F37 -> 0 | M37: =D37*F37*H37*J37 -> 0 | N37: 0 | R37: 0 | S37: 0 | T37: 0
C38: Jalapenos | D38: 1 | E38: jalapeno | F38: 0.5 | H38: 2 | J38: =C3 -> 1 | L38: =ROUND(H38*J38,0) -> 2 | M38: =L38*F38 -> 1 | N38: 0.0625 | R38: 0 | S38: 0 | T38: 0
C39: Garlic, packets | D39: 1 | E39: packet | F39: 1.5 | H39: 1 | J39: =C3 -> 1 | L39: =ROUND(H39*J39,0) -> 1 | M39: =L39*F39 -> 1.5 | N39: 0.09375 | R39: 0 | S39: 0 | T39: 0
C40: Onion, thumb dia | D40: 1 | E40: onion | F40: 6 | H40: 1 | J40: =C3 -> 1 | L40: 1 | M40: 6 | N40: 0.375 | R40: 0 | S40: 0 | T40: 0
C41: Lime | D41: 1 | E41: lime | F41: 2 | H41: 1 | J41: =C3 -> 1 | L41: 1 | M41: 2 | N41: 0.125 | R41: 0 | S41: 0 | T41: 0
C42: Spice collection(review) | D42: 1 | E42: oz | F42: 1 | H42: 3 | J42: =C3 -> 1 | L42: 3 | M42: 3 | N42: 0.1875 | R42: 0 | S42: 0 | T42: 0
C43: Cajun seasoning etc | L43: 0 | M43: 0
C44: Salt | D44: 1 | E44: oz | F44: 1 | H44: 2 | J44: =C3 -> 1 | L44: 2 | M44: 2 | N44: 0.125 | R44: 0 | S44: 0 | T44: 0
C45: Olive oil (~240 cal/oz) | D45: 1 | E45: oz | F45: 1.5 | H45: =2*#REF! ->  | J45: =C3 -> 1 | R45: =H45*F45*Q45*D46 ->  | T45: 0
B46: Stuff sacks | D46: 0 | E46: sack | F46: 4.5 | K46: =J7 -> 0 | L46: =K46 -> 0 | M46: =D46*F46*L46 -> 0 | N46: 0
B47: Bearvault | D47: 1 | E47: vault | F47: 41 | K47: 1 | L47: =K47 -> 1 | M47: =D47*F47*L47 -> 41 | N47: =M47/16 -> 2.5625
A48: Food, total (one person) | M48: 0 | N48: =M48/16 -> 0 | R48: 0 | S48: 0 | T48: 0
C49: Backpacker’s food—am = granola and/or alt | trail = nuts & fruits | pm = rice, beans, dry/fresh veg | and variety—try out soups | crackers and more | Kool-Aid
C50: Granola alternates and supplements—Cream of wheat savory | and with sugar and blueberries | and made-up mixes from co-op bulk
A51: Cooking | C51: Bold = current use
C52: Utensils | D52: 1 | E52: item(s) | F52: 6 | K52: 1 | M52: =D52*F52 -> 6 | N52: =M52/16 -> 0.375
C53: Coffee filters | D53: 1 | E53: item(s) | F53: 0.05 | G53: 1 | L53: =C2 -> 7 | M53: =D53*F53*G53*L53 -> 0.35 | N53: =M53/16 -> 0.021875
C54: Stove-MSR Dragonfly | D54: 0 | E54: item(s) | F54: 14.5 | K54: 1 | M54: =D54*F54*K54/C6 -> 0 | N54: =M54/16 -> 0
C55: Stove-Pocket rocket with base | D55: 1 | E55: item(s) | F55: 4 | K55: 1 | M55: =D55*F55*K55/C6 -> 4 | N55: =M55/16 -> 0.25
C56: Heat shield | D56: 0 | E56: item(s) | F56: 2.5 | K56: 1 | M56: =D56*F56*K56/C6 -> 0 | N56: 0
C57: Pot, titanium | D57: 1 | E57: item(s) | F57: 6 | K57: 1 | M57: =D57*F57*K57/C6 -> 6 | N57: 0.375
C58: Pot, stainless, 0.50 gal | D58: 0 | E58: item(s) | F58: 20 | K58: 1 | M58: =D58*F58*K58/C6 -> 0 | N58: 0
C59: Pot, stainless, 0.25 gal | D59: 0 | E59: item(s) | F59: 13 | K59: 1 | M59: =D59*F59*K59/C6 -> 0 | N59: 0
C60: Fuel bottle, 1 l tr/ 33oz | D60: 0 | E60: item(s) | F60: 7.6 | K60: =ROUNDUP(H64*C6/32,0) -> 1 | M60: =D60*F60*K60/C6 -> 0 | N60: =M60/16 -> 0
C61: Fuel bottle, 591 ml / 20oz | D61: =0 -> 0 | E61: item(s) | F61: 6 | K61: 1 | M61: 0 | N61: =M61/16 -> 0
C62: Fuel bottle, 325 ml / 11oz | D62: 0 | E62: item(s) | F62: 4 | K62: 1 | M62: 0 | N62: =M62/16 -> 0
C64: Fuel | E64: fl oz | F64: 0.7 | H64: =(32*(1+(C6-1)*0.5)*C3)/C6 -> 32 | M64: 0 | N64: =M64/16 -> 0
D66: 1=take, 0=no | E66: unit | F66: oz/unit | G66: units/day | H66: units /week | I66: units/month | J66: weeks | K66: /trip | L66: units (total) | M66: oz (total) | N66: lb
C67: MSR Pocket Rocket Deluxe | D67: 0 | E67: item(s) | F67: 2.9 | G67: currently, a one person item | K67: 1 | M67: =D67*F67 -> 0 | N67: =M67/16 -> 0
C68: MSR cannisters 7.4 oz | D68: 0 | E68: item(s) | F68: 7.4 | J68: =C3 -> 1 | L68: =ROUNDUP((J69*H69)-INT(J69*H69),0) -> 1 | M68: 0 | N68: 0
C69: MSR cannisters 13.1 oz | D69: 1 | E69: item(s) | F69: 13.1 | H69: 1.4 | J69: =C3 -> 1 | L69: =INT(J69*H69) -> 1 | M69: 0 | N69: =M69/16 -> 0
A70: Cooking… total | M70: =SUM(M52:M69) -> 16.35 | N70: 1.021875
A72: Hiking, travel | I72: include in pack weight 1 = yes, 0 = no
C73: Backpack, Osprey, Exos 58 | D73: 1 | E73: item(s) | F73: 36 | I73: 1 | M73: =D73*F73*I73 -> 36 | N73: =M73/16 -> 2.25
C74: Pack Cover, Osprey, Large | D74: 0 | E74: item(s) | F74: 3 | I74: 1 | M74: 0 | N74: =M74/16 -> 0
C75: Backpack, Osprey, Argon 85M | D75: 0 | E75: item(s) | F75: 104 | I75: 1 | M75: 0 | N75: =M75/16 -> 0
C76: Olive Jansport daypack | D76: 0 | E76: item(s) | F76: 17 | I76: 1 | M76: 0 | N76: =M76/16 -> 0
C77: Sea to Summit light daypack | D77: 1 | E77: item(s) | F77: 2.5 | I77: 1 | M77: =D77*F77*I77 -> 2.5 | N77: =M77/16 -> 0.15625
C78: Binoculars | D78: 0 | E78: item(s) | F78: 8.5 | I78: 1 | M78: 0 | N78: =M78/16 -> 0
C79: Rifle, .30-06 | D79: 0 | E79: item(s) | F79: 144 | I79: 1 | M79: 0 | N79: =M79/16 -> 0
C80: Shoes, ankle high (new) | D80: 0 | E80: item(s) | F80: 32 | I80: 0 | M80: =D80*F80*I80 -> 0 | N80: 0
C81: Shoes, ankle high | D81: 0 | E81: item(s) | F81: 48 | I81: 0 | M81: 0 | N81: 0
C82: Shoes, running | D82: 0 | E82: item(s) | F82: 30 | I82: 0 | M82: 0 | N82: 0
C83: Sneakers | D83: 0 | E83: item(s) | F83: 29 | I83: 1 | M83: 0 | N83: 0
C84: Sandals, Keen | D84: 1 | E84: item(s) | F84: 27 | I84: 1 | M84: =D84*F84*I84 -> 27 | N84: =M84/16 -> 1.6875
C85: Sandals for water crossing | D85: 1 | E85: item(s) | F85: 18 | I85: 1 | M85: 18 | N85: 1.125
C86: Sandals, Teva | D86: 0 | E86: item(s) | F86: 24 | I86: 1 | M86: =D86*F86*I86 -> 0 | N86: =M86/16 -> 0
C87: Shoes, dress | D87: 0 | E87: item(s) | F87: 26 | I87: 1 | M87: 0 | N87: =M87/16 -> 0
C88: MSR Snowshoes | D88: 0 | E88: item(s) | F88: 59 | I88: 1 | M88: 0 | N88: 0
C89: … MSR Snowshoe extebsuibs | D89: 0 | E89: item(s) | F89: 17 | I89: 1 | M89: 0 | N89: 0
C90: Cross-country skis and poles | D90: 0 | E90: item(s) | F90: 118 | I90: 1 | M90: 0 | N90: 0
C91: Crampons | D91: 0 | E91: item(s) | F91: 40.75 | I91: 1 | M91: 0 | N91: 0
C92: Trekking poles, Leki | D92: 1 | E92: item(s) | F92: 20 | I92: 0 | M92: 0 | N92: =M92/16 -> 0
C93: Insect netting (head) | D93: 1 | E93: item(s) | F93: 1.5 | I93: 1 | M93: 1.5 | N93: 0.09375
C94: Pouch-misc items | D94: 1 | E94: item(s) | F94: 14 | I94: 1 | M94: 14 | N94: 0.875
C95: Albuterol | D95: 0 | E95: item(s) | F95: 1.5 | I95: 1 | M95: 0 | N95: 0
C96: Advair | D96: 0 | E96: item(s) | F96: 2 | I96: 1 | M96: =D96*F96*I96 -> 0 | N96: =M96/16 -> 0
C97: Maps, paper | D97: 1 | E97: item(s) | F97: 5 | I97: 1 | M97: 5 | N97: 0.3125
C98: Simple manual | D98: 0 | E98: item(s) | F98: 1.5 | G98: (included in maps, paper) | I98: 1 | M98: 0 | N98: 0
C99: Camera | D99: 0 | E99: item(s) | F99: 6.5 | I99: 1 | M99: 0 | N99: 0
C100: Phone with charger | D100: 1 | E100: item(s) | F100: 12 | I100: 1 | M100: 12 | N100: 0.75
C101: Battery pack | D101: 1 | E101: item(s) | F101: 7 | G101: (two if more than a week) | I101: 1 | L101: =ROUNDUP(C2/7,0) -> 1 | M101: =D101*F101*L101 -> 7 | N101: =M101/16 -> 0.4375
C102: Cards, check, cash, key | D102: 1 | E102: item(s) | F102: 2 | G102: (included in pouch) | I102: 1 | M102: 2 | N102: 0.125
C103: Batteries | D103: 0 | E103: item(s) | F103: 4.5 | I103: 1 | M103: 0 | N103: =M103/16 -> 0
C104: Watch | D104: 1 | E104: item(s) | F104: 1 | I104: 1 | M104: 1 | N104: 0.0625
C105: Plastic bags - storage, waterproofing | D105: 0 | E105: item(s) | F105: 0.5 | G105: (included in med sack, below) | I105: 1 | M105: 0 | N105: 0
C107: H2O filter straw | D107: 1 | E107: item(s) | F107: 2.5 | I107: 1 | M107: =D107*F107*I107 -> 2.5 | N107: 0.15625
C108: 64 oz Platypus H2O bladder | D108: 0 | E108: item(s) | F108: 6 | I108: 1 | M108: =D108*F108*I108 -> 0 | N108: 0
C109: 32 oz Nalgene H2O bottle | D109: 1 | E109: item(s) | F109: 7 | I109: 1 | M109: =D109*F109*I109 -> 7 | N109: 0.4375
C110: 32 oz Body Armor H2O | D110: 1 | E110: item(s) | F110: 2 | I110: 1 | M110: =D110*F110*I110 -> 2 | N110: =M110/16 -> 0.125
C111: H2O for platypus | D111: 0 | E111: oz | F111: 1 | G111: 64 | I111: 1 | M111: =D111*F111*G111*I111 -> 0 | N111: 0
C112: H2O for nalgene | D112: 0 | E112: oz | F112: 1 | G112: 32 | I112: 1 | M112: =D112*F112*G112*I112 -> 0 | N112: 0
A113: Hiking, total | M113: =SUM(M73:M112) -> 137.5 | N113: 8.59375
A115: Camping
C116: Tent (Nemo, Elite 1p) + footprint | D116: 1 | E116: items(s) | F116: 32 | L116: =ABS(C6-2) -> 1 | M116: =D116*F116*L116 -> 32 | N116: =M116/16 -> 2 | O116: (one person)
C117: Tent (Sierra Designs, Flashlight) | D117: 0 | E117: items(s) | F117: 78 | L117: =ABS(C6-1) -> 0 | M117: =D117*F117*L117/2 -> 0 | N117: 0 | O117: (two people)
C118: Bivvy | D118: 0 | E118: items(s) | F118: 17 | M118: =D118*F118 -> 0 | N118: 0
C119: Bivvy - OR | D119: 0 | E119: items(s) | F119: 21 | M119: =D119*F119 -> 0 | N119: 0
C120: Tarp 9'x9' | D120: 0 | E120: items(s) | F120: 33 | M120: =D120*F120 -> 0 | N120: 0
C121: Tarp 8'x6' | D121: 0 | E121: items(s) | F121: 25 | M121: =D121*F121 -> 0 | N121: 0
C122: Hyperlite tarp | D122: 0 | E122: items(s) | F122: 20 | M122: =D122*F122 -> 0 | N122: =M122/16 -> 0
C123: Ridge 10 stakes, lines 10 - 12', guys 4 -6'
C124: Ground sheet (separate) | D124: 0 | E124: items(s) | F124: 13 | M124: =D124*F124 -> 0 | N124: 0
C125: Footprint - MSR
C126: Sleeping bag, Western Mountaineering | D126: 1 | E126: items(s) | F126: 18 | M126: =D126*F126 -> 18 | N126: =M126/16 -> 1.125
C127: Sleeping bag, Marmot | D127: 0 | E127: items(s) | F127: 34 | M127: 0 | N127: =M127/16 -> 0
C128: Sea to Summit Liner 'reactor' | D128: 0 | E128: items(s) | F128: 11 | M128: =D128*F128 -> 0 | N128: =M128/16 -> 0
C129: Sea to Summit Liner 'reactor - extreme' | D129: 0 | E129: items(s) | F129: 15 | M129: =D129*F129 -> 0 | N129: =M129/16 -> 0
C130: Ground pad | D130: 1 | E130: items(s) | F130: 7.5 | M130: 7.5 | N130: 0.46875
C131: Rope, straps | D131: 0 | E131: items(s) | F131: 3.5 | G131: (included in med sack, below) | M131: 0 | N131: 0
C132: Med sack | D132: 1 | E132: items(s) | F132: 20 | M132: 20 | N132: 1.25
C133: Toilet with mouthwash, bug spray | D133: 1 | E133: items(s) | F133: 10 | G133: (3.5 oz without mouthwash and bug spray) | M133: 10 | N133: 0.625
A134: Camping, total | M134: =SUM(M116:M133) -> 87.5 | N134: 5.46875
A136: Clothes | B136: * summer, general | D136: Count | G136: 1=take, 0=no | I136: include in pk wt, 0=no
C137: Lite cap shirt* | D137: 1 | E137: item(s) | F137: 5.5 | G137: 0 | I137: 1 | M137: =D137*F137*G137*I137 -> 0 | N137: =M137/16 -> 0
C138: Lite silk shirt | D138: 1 | E138: item(s) | F138: 3.5 | G138: 1 | I138: 1 | M138: =D138*F138*G138*I138 -> 3.5 | N138: =M138/16 -> 0.21875
C139: Lite cap shirt, tee / long sleeve* | D139: 1 | E139: item(s) | F139: 3.5 | G139: 0 | I139: 1 | M139: 0 | N139: =M139/16 -> 0
C140: Cap shirt, grey, hooded (OR)* | D140: 1 | E140: item(s) | F140: 4.5 | G140: 1 | I140: 1 | M140: 4.5 | N140: 0.28125
C141: Cap shirt, naval blue, hooded (OR)* | D141: 1 | E141: item(s) | F141: 4.5 | G141: 0 | I141: 1 | M141: =D141*F141*G141*I141 -> 0 | N141: =M141/16 -> 0
C142: Arcteryx Lightweight Hoodie | D142: 1 | E142: item(s) | F142: 11 | G142: 1 | I142: 1 | M142: =D142*F142*G142*I142 -> 11 | N142: =M142/16 -> 0.6875
C143: Steel grey warm shirt* | D143: 1 | E143: item(s) | F143: 10 | G143: 0 | I143: 1 | M143: 0 | N143: 0
C144: Mid wt cap z-neck | D144: 1 | E144: item(s) | F144: 9 | G144: 0 | I144: 1 | M144: 0 | N144: 0
C145: Collared shirt / dress | D145: 1 | E145: item(s) | F145: 8 | G145: 0 | I145: 1 | M145: 0 | N145: 0
C146: Blk wind wall jacket, N Face | D146: 1 | E146: item(s) | F146: 26.5 | G146: 0 | I146: 1 | M146: 0 | N146: 0
C147: Blk lined jacket, N Face | D147: 1 | E147: item(s) | F147: 18 | G147: 0 | I147: 1 | M147: 0 | N147: 0
C148: Red wind wall jacket, Marmot | D148: 1 | E148: item(s) | F148: 23.5 | G148: 0 | I148: 1 | M148: 0 | N148: 0
C149: Rain jacket, Marmot* | D149: 1 | E149: item(s) | F149: 12.25 | G149: 0 | I149: 1 | M149: 0 | N149: 0
C150: Rain jacket, Northace* | D150: 1 | E150: item(s) | F150: 12 | G150: 1 | I150: 1 | M150: =D150*F150*G150*I150 -> 12 | N150: =M150/16 -> 0.75
C151: Rain jacket, Columbia | D151: 1 | E151: item(s) | F151: 18 | G151: 0 | I151: 1 | M151: 0 | N151: 0
C152: Down jacket, blue | D152: 1 | E152: item(s) | F152: 24 | G152: 0 | I152: 1 | M152: 0 | N152: =M152/16 -> 0
C153: Dress jacket | D153: 1 | E153: item(s) | F153: 26.5 | G153: 0 | I153: 1 | M153: 0 | N153: 0
C154: Gloves, lite | D154: 1 | E154: item(s) | F154: 1 | G154: 1 | I154: 1 | M154: 1 | N154: 0.0625
C155: Sun-visor* | D155: 1 | E155: item(s) | F155: 2 | G155: 1 | I155: 1 | M155: 2 | N155: =M155/16 -> 0.125
C156: Hat | D156: 1 | E156: item(s) | F156: 5 | G156: 0 | I156: 1 | M156: 0 | N156: 0
C157: Lite cap long u'wear* | D157: 1 | E157: item(s) | F157: 4 | G157: 0 | I157: 0 | M157: 0 | N157: 0
C158: Lite cap long u'wear, spare* | D158: 1 | E158: item(s) | F158: 4 | G158: 0 | I158: 1 | M158: =D158*F158*G158*I158 -> 0 | N158: 0
C159: Lite silk long u'wear* | D159: 1 | E159: item(s) | F159: 4.5 | G159: 1 | I159: 1 | M159: 4.5 | N159: =M159/16 -> 0.28125
C160: Mid wt cap u'wear | D160: 1 | E160: item(s) | F160: 8 | G160: 0 | I160: 1 | M160: =D160*F160*G160*I160 -> 0 | N160: 0
C161: Short u'wear* | D161: 1 | E161: item(s) | F161: 4 | G161: 0 | I161: 1 | M161: =D161*F161*G161*I161 -> 0 | N161: 0
C162: Shorts* | D162: 1 | E162: item(s) | F162: 10 | G162: 0 | I162: 1 | M162: =D162*F162*G162*I162 -> 0 | N162: =M162/16 -> 0
C163: Shorts (swim)* | D163: 1 | E163: item(s) | F163: 7 | G163: 1 | I163: 1 | M163: 7 | N163: 0.4375
C164: Hiking pants* | D164: 1 | E164: item(s) | F164: 15 | G164: 0 | I164: 1 | M164: 0 | N164: 0
C165: Belt* | D165: 1 | E165: item(s) | F165: 2 | G165: 0 | I165: 0 | M165: 0 | N165: 0
C166: Jeans | D166: 1 | E166: item(s) | F166: 24 | G166: 0 | I166: 1 | M166: 0 | N166: 0
C167: Rain pants Northface* | D167: 1 | E167: item(s) | F167: 9 | G167: 0 | I167: 1 | M167: 0 | N167: 0
C168: Heavy socks* | D168: 2 | E168: item(s) | F168: 4.5 | G168: 1 | I168: 1 | M168: =D168*F168*G168*I168 -> 9 | N168: 0.5625
C169: Intermediate sox | D169: 1 | E169: item(s) | F169: 3 | G169: 0 | I169: 1 | M169: =D169*F169*G169*I169 -> 0 | N169: 0
C170: Lite sox* | D170: 1 | E170: item(s) | F170: 2 | G170: 0 | I170: 1 | M170: 0 | N170: 0
C171: Bandana* | D171: 1 | E171: item(s) | F171: 1.5 | G171: 1 | I171: 1 | M171: 1.5 | N171: 0.09375
C172: MSR Towel* | D172: 1 | E172: item(s) | F172: 2 | G172: 0 | I172: 1 | M172: 0 | N172: 0
C173: Spade | D173: 1 | E173: item(s) | F173: 3 | G173: 1 | I173: 1 | M173: =D173*F173*G173*I173 -> 3 | N173: =M173/16 -> 0.1875
C174: Stuff sacks with straps and liners (2)* | D174: 1 | E174: item(s) | F174: 5 | G174: 1 | I174: 1 | M174: 5 | N174: 0.3125
C175: … sack liner* | D175: 1 | E175: item(s) | F175: 1 | G175: 0 | H175: incl above | I175: 1 | M175: 0 | N175: 0
C176: … sack straps* | D176: 1 | E176: item(s) | F176: 1 | G176: 0 | H176: incl above | I176: 1 | M176: 0 | N176: 0
A177: Clothes, total | M177: =SUM(M137:M176) -> 64 | N177: 4
A179: Total pack | M179: =M48+M70+M113+M134+M177 -> 305.35 | N179: =M179/16 -> 19.084375
A181: Total with food, fuel, and bear vault | M181: =M179+'Food and fuel'!P87 -> 501.406 | N181: =M181/16 -> 31.337875
A182: Total with food, fuel, and bear vault | K182: Rounded | M182: =ROUNDUP(M181,0) -> 502 | N182: =ROUNDUP(N181,0) -> 32

Sheet Food and fuel
A1: USE
B2: red items are to be entered for each trip
B3: food cal/oz from | C3: https://www.myfooddiary.com/
B4: review for improvement
A6: TRIP LENGTH
B7: cal (days @) | C7: 1500 | D7: 7 | E7: =C7*D7 -> 10500 | F7: cal
B8: cal (days @) | C8: 2000 | D8: 0 | E8: =C8*D8 -> 0 | F8: cal
B9: cal (days @) | C9: 3000 | D9: 0 | E9: =C9*D9 -> 0 | F9: cal
B10: cal (days @) | C10: 4000 | D10: 0 | E10: 0 | F10: cal
B11: cal (days @) | C11: 5000 | D11: 0 | E11: 0 | F11: cal
B12: cal (days @) | C12: 6000 | D12: 0 | E12: 0 | F12: cal
E13: =SUM(E7:E12) -> 10500 | F13: sum
B14: days | D14: =SUM(D7:D12) -> 7
B15: weeks | D15: =D14/7 -> 1
B16: cal factor r/t 1500 | D16: =E13/(1500*D14) -> 1
A18: FOOD | C18: food | D18: packets etc | E18: unit | F18: # /wk | G18: oz/item | H18: # | I18: cal/oz | J18: oz/day | K18: cal/day | L18: take | M18: cal/day | N18: oz/day | O18: days | P18: pack | Q18: pack | R18: have | S18: buy | T18: buy
F19: nominal | J19: for nominal 1,500 cal/day | L19: y=1, n=0 | M19: actual | P19: oz | Q19: lb | R19: oz | S19: oz | T19: lb
C20: bold = staples (main calorie foods), italics = secondary or non-calorie foods, normal font = items that come as packets etc.
D21: experiment with staples amounts, new spices and seasonings, sugar v stevia
B22: BREAKFAST
C23: Granola | E23: oz | I23: 116 | J23: 2 | K23: =I23*J23 -> 232 | L23: 1 | M23: =K23*L23*D16 -> 232 | N23: =J23*L23*D16 -> 2 | O23: =D14 -> 7 | P23: =N23*O23 -> 14 | Q23: =P23/16 -> 0.875 | R23: 0 | S23: =MAX(P23-R23,0) -> 14 | T23: =S23/16 -> 0.875
C24: Coffee | E24: oz | I24: 0 | J24: 1.4 | K24: =I24*J24 -> 0 | L24: 1 | M24: =K24*L24 -> 0 | N24: =J24*L24 -> 1.4 | O24: =D14 -> 7 | P24: =N24*O24 -> 9.8 | Q24: =P24/16 -> 0.6125 | R24: 0 | S24: =MAX(P24-R24,0) -> 9.8 | T24: =S24/16 -> 0.6125
C25: Sugar | E25: oz | I25: 110 | J25: 0.5 | K25: =I25*J25 -> 55 | L25: 1 | M25: =K25*L25 -> 55 | N25: =J25*L25 -> 0.5 | O25: =D14 -> 7 | P25: =N25*O25 -> 3.5 | Q25: =P25/16 -> 0.21875 | R25: 0 | S25: =MAX(P25-R25,0) -> 3.5 | T25: =S25/16 -> 0.21875
C26: Milkman | D26: pkt | E26: oz | F26: 2 | G26: 3.44 | H26: =ROUNDUP(F26*D14/7,0) -> 2 | I26: 111 | J26: =H26*G26/D14 -> 0.9828571429 | K26: 109.0971429 | L26: 1 | M26: =K26*L26 -> 109.0971429 | N26: =J26*L26 -> 0.9828571429 | O26: =D14 -> 7 | P26: =N26*O26 -> 6.88 | Q26: =P26/16 -> 0.43 | R26: 0 | S26: =MAX(P26-R26,0) -> 6.88 | T26: =S26/16 -> 0.43
C27: Inst coffee-Starbucks | D27: pkt | E27: oz | F27: 10 | G27: 0.1411 | H27: =ROUNDUP(F27*D14/7,0) -> 10 | I27: 0 | J27: =H27*G27/D14 -> 0.2015714286 | K27: 0 | L27: 1 | M27: =K27*L27 -> 0 | N27: =J27*L27 -> 0.2015714286 | O27: =D14 -> 7 | P27: =N27*O27 -> 1.411 | Q27: =P27/16 -> 0.0881875 | R27: 0 | S27: =MAX(P27-R27,0) -> 1.411 | T27: =S27/16 -> 0.0881875
C28: Teas | D28: tea bag | E28: oz | F28: 10 | G28: 0.0625 | H28: =ROUNDUP(F28*D14/7,0) -> 10 | I28: 0 | J28: =H28*G28/D14 -> 0.08928571429 | K28: 0 | L28: 1 | M28: =K28*L28 -> 0 | N28: =J28*L28 -> 0.08928571429 | O28: =D14 -> 7 | P28: 0.625 | Q28: 0.0390625 | R28: 0 | S28: 0.625 | T28: 0.0390625
C29: Condensed milk | D29: can | E29: oz | F29: 1 | G29: 14 | H29: =ROUNDUP(F29*D14/7,0) -> 1 | I29: 100 | J29: =H29*G29/D14 -> 2 | K29: 200 | L29: 0 | M29: 0 | N29: 0 | O29: =D14 -> 7 | P29: 0 | Q29: 0 | R29: 0 | S29: =MAX(P29-R29,0) -> 0 | T29: 0
C30: Collagen
C31: Protein
B32: LUNCH, TRAIL
C33: Sesame sticks | E33: oz | I33: 155 | J33: 2 | K33: 310 | L33: 1 | M33: =K33*L33*D16 -> 310 | N33: =J33*L33*D16 -> 2 | O33: =D14 -> 7 | P33: 14 | Q33: 0.875 | R33: 0 | S33: =MAX(P33-R33,0) -> 14 | T33: =S33/16 -> 0.875
C34: Nuts | E34: oz | I34: 160 | J34: 2.25 | K34: 360 | L34: 1 | M34: =K34*L34*D16 -> 360 | N34: =J34*L34*D16 -> 2.25 | O34: =D14 -> 7 | P34: 15.75 | Q34: 0.984375 | R34: 0 | S34: =MAX(P34-R34,0) -> 15.75 | T34: =S34/16 -> 0.984375
C35: Dried fruit | E35: oz | I35: 100 | J35: 1 | K35: =I35*J35 -> 100 | L35: 1 | M35: =MAX(K35*L35*D16-M36,0) -> 100 | N35: =M35/I35 -> 1 | O35: =D14 -> 7 | P35: =N35*O35 -> 7 | Q35: =P35/16 -> 0.4375 | R35: 0 | S35: 7 | T35: =S35/16 -> 0.4375
C36: Bread Oroweat whole grain- for camping | E36: slice | F36: 14 | G36: 1.52 | I36: 72.39 | J36: =F36*G36/D14 -> 3.04 | K36: =I36*J36 -> 220.0656 | L36: 0 | M36: =K36*L36 -> 0 | N36: =J36*L36 -> 0 | O36: =D14 -> 7
C37: (16 slices per loaf) | L37: may set to 1 if camping
C38: Peanut butter - for camping | L38: =L36 -> 0
C39: Jelly - for camping | L39: =L36 -> 0
B41: DINNER
C42: Rice | E42: oz | I42: 115 | J42: 1 | K42: 115 | L42: 1 | M42: =K42*L42*((1+0.4*(1-L45))+(D16-1)) -> 161 | N42: =J42*L42*((1+0.4*(1-L45))+(D16-1)) -> 1.4 | O42: =D14 -> 7 | P42: 9.8 | Q42: 0.6125 | R42: 0 | S42: =MAX(P42-R42,0) -> 9.8 | T42: 0.6125
C43: Beans | E43: oz | I43: 102 | J43: 1 | K43: 102 | L43: 1 | M43: =K43*L43*((1+0.4*(1-L45))+(D16-1)) -> 142.8 | N43: =J43*L43*((1+0.4*(1-L45))+(D16-1)) -> 1.4 | O43: =D14 -> 7 | P43: 9.8 | Q43: 0.6125 | R43: 0 | S43: =MAX(P43-R43,0) -> 9.8 | T43: 0.6125
C44: TVP - textured vegetable protein (complete protein)
C45: Ramen | D45: pkt | E45: oz | F45: 2 | G45: 2.5 | H45: =ROUNDUP(F45*D14/7,0) -> 2 | I45: 102 | J45: =H45*2.5/D14 -> 0.7142857143 | K45: 72.85714286 | L45: 0 | M45: 0 | N45: 0 | O45: =D14 -> 7 | P45: 0 | Q45: 0 | R45: 0 | S45: =MAX(P45-R45,0) -> 0 | T45: 0
C46: Broths | D46: pkt | E46: oz | F46: 5 | G46: 0.5 | H46: =ROUNDUP(F46*D14/7,0) -> 5 | I46: 70 | J46: =H46*G46/D14 -> 0.3571428571 | K46: 25 | L46: 1 | M46: 25 | N46: 0.3571428571 | O46: =D14 -> 7 | P46: 2.5 | Q46: 0.15625 | R46: 0 | S46: =MAX(P46-R46,0) -> 2.5 | T46: 0.15625
C47: Jerky | D47: pkt | E47: oz | F47: 1 | G47: 3 | H47: =ROUNDUP(F47*D14/7,0) -> 1 | I47: 116 | J47: =H47*G47/D14 -> 0.4285714286 | K47: 49.71428571 | L47: 1 | M47: 49.71428571 | N47: 0.4285714286 | O47: =D14 -> 7 | P47: 3 | Q47: 0.1875 | R47: 0 | S47: 3 | T47: 0.1875
C48: Jerky | D48: pkt | E48: oz | F48: 1 | G48: 7 | H48: =ROUNDUP(F48*D14/7,0) -> 1 | I48: 116 | J48: =H48*G48/D14 -> 1 | K48: 116 | L48: 0 | M48: 0 | N48: 0 | O48: =D14 -> 7 | P48: 0 | Q48: 0 | R48: 0 | S48: 0 | T48: 0
C49: Cheese, cheddar | E49: oz | I49: 120 | J49: 1 | K49: 120 | L49: 0 | M49: 0 | N49: 0 | O49: =D14 -> 7 | P49: 0 | Q49: 0 | R49: 0 | S49: 0 | T49: 0
C50: Drinks, kool-aid | D50: pkt | E50: oz | F50: 3 | G50: 0.13 | H50: =ROUNDUP(F50*D14/7,0) -> 3 | I50: 0 | J50: =H50*G50/D14 -> 0.05571428571 | K50: 0 | L50: 1 | M50: 0 | N50: 0.05571428571 | O50: =D14 -> 7 | P50: 0.39 | Q50: 0.024375 | R50: 0 | S50: 0.39 | T50: 0.024375
C51: Fruit bars | D51: bar | E51: oz | F51: 7 | G51: 1.2 | H51: =ROUNDUP(F51*D14/7,0) -> 7 | I51: 100 | J51: =H51*G51/D14 -> 1.2 | K51: 120 | L51: 1 | M51: =K51*L51*D16 -> 120 | N51: =J51*L51 -> 1.2 | O51: =D14 -> 7 | P51: 8.4 | Q51: 0.525 | R51: 0 | S51: 8.4 | T51: 0.525
C52: Energy nuggets | E52: oz | I52: 135 | J52: 1 | K52: 135 | L52: 0 | M52: =K52*L52 -> 0 | N52: =J52*L52 -> 0 | O52: =D14 -> 7 | P52: 0 | Q52: 0 | R52: 0 | S52: 0 | T52: 0
C53: Spices and salt | D53: collection | E53: oz | F53: =1/3 -> 0.3333333333 | G53: =3 -> 3 | H53: =ROUNDUP(1.5*F53*D15,0) -> 1 | I53: 0 | J53: =H53*G53/D14 -> 0.4285714286 | K53: 0 | L53: 1 | M53: =K53*L53 -> 0 | N53: =J53*L53 -> 0.4285714286 | O53: =D14 -> 7 | P53: =N53*O53 -> 3 | Q53: =P53/16 -> 0.1875 | R53: 0 | S53: 3 | T53: 0.1875
C54: Sun dried tomatoes | D54: bulk pkt | E54: oz | F54: =1/3 -> 0.3333333333 | G54: 2.5 | H54: =ROUNDUP(1.5*F54*D16,0) -> 1 | I54: 0 | J54: =H54*G54/D14 -> 0.3571428571 | K54: 0 | L54: 0 | M54: =K54*L54 -> 0 | N54: =J54*L54 -> 0 | O54: =D14 -> 7 | P54: =N54*O54 -> 0 | Q54: =P54/16 -> 0 | R54: 2.5 | S54: =MAX(P54-R54,0) -> 0 | T54: =S54/16 -> 0
C55: Powdered tomatoes | L55: 0
C56: Food cans etc (camp) | L56: 0
E57: review this for spices adequate for three weeks… except salt, for which extra should be taken for trips over a week
E58: unit | F58: # items/wk | G58: oz/item | H58: # items | I58: cal/oz | J58: oz/day | K58: cal/day | L58: take | M58: cal/day | N58: oz/day | O58: days | P58: oz | Q58: lb | R58: have | S58: need | T58: need
F59: nominal | S59: oz | T59: lb
C60: Olive oil | D60: container | E60: oz | F60: 2 | G60: 1 | H60: =ROUNDUP(F60*D14/7,0) -> 2 | I60: 240 | J60: =H60*G60/D14 -> 0.2857142857 | K60: 68.57142857 | L60: 1 | M60: =K60*L60*D16 -> 68.57142857 | N60: 0.2857142857 | O60: =D14 -> 7 | P60: 2 | Q60: 0.125 | R60: 0 | S60: =P60-R60 -> 2 | T60: =S60/16 -> 0.125
C61: Vitamins and meds | D61: container system | E61: oz | F61: 1 | G61: 4.5 | I61: 0 | J61: =G61/7 -> 0.6428571429 | K61: 0 | L61: 1 | M61: 0 | N61: 0.6428571429 | O61: =D14 -> 7 | P61: 4.5 | Q61: 0.28125 | R61: 0 | S61: =P61-R61 -> 4.5 | T61: =S61/16 -> 0.28125
C62: See | D62: Meds!A1
B63: Fresh veg | C63: Jalapenos | D63: oz | E63: oz | F63: 2 | G63: 0.5 | H63: =ROUNDUP(F63*D14/7,0) -> 2 | I63: 0 | J63: =H63*G63/D14 -> 0.1428571429 | K63: 0 | L63: 1 | M63: 0 | N63: 0.1428571429 | O63: =D14 -> 7 | P63: 1 | Q63: 0.0625 | R63: 0 | S63: 1 | T63: 0.0625
C64: Garlic | D64: pkt | E64: oz | F64: 1 | G64: 1.5 | H64: =ROUNDUP(F64*D14/7,0) -> 1 | I64: 0 | J64: =H64*G64/D14 -> 0.2142857143 | K64: 0 | L64: 1 | M64: 0 | N64: 0.2142857143 | O64: =D14 -> 7 | P64: 1.5 | Q64: 0.09375 | R64: 0 | S64: 1.5 | T64: 0.09375
C65: Garlic, fresh peeled | L65: 0
C66: Onion | D66: oz | E66: oz | F66: 1 | G66: 8 | H66: =ROUNDUP(F66*D14/7,0) -> 1 | I66: 0 | J66: =H66*G66/D14 -> 1.142857143 | K66: 0 | L66: 1 | M66: 0 | N66: 1.142857143 | O66: =D14 -> 7 | P66: 8 | Q66: 0.5 | R66: 0 | S66: 8 | T66: 0.5
C67: Pre-sautéed vegetables
C68: Lime | D68: oz | E68: oz | F68: 1 | G68: 2 | H68: =ROUNDUP(F68*D14/7,0) -> 1 | I68: 0 | J68: =H68*G68/D14 -> 0.2857142857 | K68: 0 | L68: 1 | M68: 0 | N68: 0.2857142857 | O68: =D14 -> 7 | P68: 2 | Q68: 0.125 | R68: 0 | S68: 2 | T68: 0.125
B69: Freeze dried veg (to be entered)
B70: DRY DINNER | C70: comment - rice and beans are ~ 107 and nuts and sesame stix are ~ 155 cal / oz; so, can substitute 2/3 of rice-beans by nuts-stix for 0 to 3 days / wk at time of purchase
C72: Total | M72: =SUM(M23:M61) -> 1733.182857 | N72: =SUM(N23:N68) -> 18.408 | P72: =SUM(P23:P68) -> 128.856 | Q72: =P72/16 -> 8.0535
A74: BEAR VAULT | L74: 1 | P74: 41 | Q74: =P74/16 -> 2.5625
A76: FUEL | D76: item | E76: unit | F76: # items/wk | G76: oz/item | H76: # items | L76: take | O76: days | P76: oz | Q76: lb
F77: nominal 1.4 - 2.0
C78: MSR ISOPRO | D78: 13.1 oz cannister | E78: oz | F78: 2 | G78: =13.1 -> 13.1 | H78: =INT(F78*D15)*L78 -> 2 | L78: 1 | O78: =D14 -> 7 | P78: =G78*H78*L78 -> 26.2 | Q78: =P78/16 -> 1.6375
C79: MSR ISOPRO | D79: 7.4 oz cannister | E79: oz | F79: N/A | G79: =7.4 -> 7.4 | H79: =ROUNDUP((F78*D15-INT(F78*D15))*(8/3.9),0) -> 0 | L79: =L78 -> 1 | O79: =D14 -> 7 | P79: =G79*H79*L79 -> 0 | Q79: =P79/16 -> 0
C81: White Gas | E81: unit | G81: oz/item | H81: # items | L81: take | O81: days | P81: oz | Q81: lb
C82: (24 oz/wk) | L82: 0 | N82: =24/7 -> 3.428571429 | O82: =D14 -> 7 | P82: =N82*O82*L82 -> 0 | Q82: =P82/16 -> 0
D83: fuel bottle | E83: oz | G83: =33 -> 33 | H83: =INT(N82*D14/33) -> 0
D84: fuel bottle | E84: oz | G84: 20 | H84: =ROUNDUP((N82*D14/33-INT(N82*D14/33))*33/22,0) -> 2
D85: fuel bottle | E85: oz | G85: 11
C86: Total fuel | P86: =P78+P79+P82 -> 26.2 | Q86: =P86/16 -> 1.6375
A87: Total food, fuel, and bear vault | P87: =P72+P74+P86 -> 196.056 | Q87: =P87/16 -> 12.2535

Sheet Meds
C3: Emergency meds for a week | H3: Note - take spares
D4: Allergy 1 week | H4: to allow trip extension
D5: Benadryl 25 mg, 14 tabs
D6: Allegra 180 mg, 7 tabs
D7: Pain management 4 days
D8: Tylenol 500 mg, 24 tabs
D9: 1000 mg TID
D10: Ibuprofen 200 mg, 24 tabs
D11: 400 mg TID
C13: Meds and vitamins for a week
D14: Vitamins and meds – all 1 tab a day
D15: Glucosamine, Multi
D16: A, B, B12, D, E,
D17: Fish oil
D18: Losartan 100 mg
D19: Ibuprofen 200 mg, up to 2 tabs a day
